{"text_format":"3","workbook":"xlsx","n_sheets":3,"sheets":["Opdrachten","Maandweergave","Weekweergave"],"not_rendered":{"images":1,"defined_names":17},"read":"whole","date_system":"1900"}

{"sheet":"Opdrachten","index":0,"n_rows":25,"n_cols":3,"rows_kept":25}
[]
[]
[]
[null,"OPDRACHT","VERVALDATUM"]
[null,"Opdracht 1","2013-03-29"]
[null,"Opdracht 2","2013-04-05"]
[null,"Opdracht 3","2013-04-08"]
[null,"Opdracht 4","2013-04-09"]
[null,"Opdracht 5","2013-04-11"]
[null,"Opdracht 6","2013-04-12"]
[null,"Opdracht 7","2013-04-15"]
[null,"Opdracht 8","2013-04-17"]
[null,"Opdracht 9","2013-04-19"]
[null,"Opdracht 10","2013-04-24"]
[null,"Opdracht 11","2013-04-25"]
[null,"Opdracht 12","2013-04-29"]
[null,"Opdracht 13","2013-04-30"]
[null,"Opdracht 14","2013-05-02"]
[null,"Opdracht 15","2013-05-06"]
[null,"Opdracht 16","2013-05-08"]
[null,"Opdracht 17","2013-05-10"]
[null,"Opdracht 18","2013-05-14"]
[null,"Opdracht 19","2013-05-17"]
[null,"Opdracht 20","2013-05-22"]
[null,"Opdracht 21","2013-06-03"]

{"sheet":"Maandweergave","index":1,"n_rows":37,"n_cols":8,"rows_kept":37,"merged":[[3,1,3,7]]}
[]
[null,{"$f":"UPPER(CHOOSE(MaMaandNum,\"Januari\",\"Februari\",\"Maart\",\"April\",\"Mei\",\"Juni\",\"Juli\",\"Augustus\",\"September\",\"Oktober\",\"November\",\"December\"))","v":"MAART"},2013,null,null,3]
[]
[null,"MAANDWEERGAVE"]
[null,"MAANDAG","DINSDAG","WOENSDAG","DONDERDAG","VRIJDAG","ZATERDAG","ZONDAG"]
[null,{"$f":"IF(WEEKDAY(DATEVALUE(\" 1- \"&MaMaand&MaJaar))=COLUMN(A$1),1,IF(LEN(A6)>0,A6+1,\"\"))","v":""},"","","","",1,2]
[null,{"$f":"IF(LEN(B6)=0,\"\",IF(COUNTIF(Opdrachten[VERVALDATUM],DATE(MaJaar,MaMaandNum,B6))>0,\"Deadline voor opdracht nadert!\",\"\"))","v":""},{"$f":"IF(LEN(C6)=0,\"\",IF(COUNTIF(Opdrachten[VERVALDATUM],DATE(MaJaar,MaMaandNum,C6))>0,\"Deadline voor opdracht nadert!\",\"\"))","v":""},{"$f":"IF(LEN(D6)=0,\"\",IF(COUNTIF(Opdrachten[VERVALDATUM],DATE(MaJaar,MaMaandNum,D6))>0,\"Deadline voor opdracht nadert!\",\"\"))","v":""},{"$f":"IF(LEN(E6)=0,\"\",IF(COUNTIF(Opdrachten[VERVALDATUM],DATE(MaJaar,MaMaandNum,E6))>0,\"Deadline voor opdracht nadert!\",\"\"))","v":""},{"$f":"IF(LEN(F6)=0,\"\",IF(COUNTIF(Opdrachten[VERVALDATUM],DATE(MaJaar,MaMaandNum,F6))>0,\"Deadline voor opdracht nadert!\",\"\"))","v":""},{"$f":"IF(LEN(G6)=0,\"\",IF(COUNTIF(Opdrachten[VERVALDATUM],DATE(MaJaar,MaMaandNum,G6))>0,\"Deadline voor opdracht nadert!\",\"\"))","v":""},{"$f":"IF(LEN(H6)=0,\"\",IF(COUNTIF(Opdrachten[VERVALDATUM],DATE(MaJaar,MaMaandNum,H6))>0,\"Deadline voor opdracht nadert!\",\"\"))","v":""}]
[]
[]
[]
[]
[null,{"$f":"IF(LEN(H6)>0,IF(H6=DAY(DATE(MaJaar,MaMaandNum+1,0)),\"\",H6+1),\"\")","v":3},{"$f":"IF(LEN(B12)>0,IF(B12=DAY(DATE(MaJaar,MaMaandNum+1,0)),\"\",B12+1),\"\")","v":4},5,6,7,8,9]
[null,{"$f":"IF(LEN(B12)=0,\"\",IF(COUNTIF(Opdrachten[VERVALDATUM],DATE(MaJaar,MaMaandNum,B12))>0,\"Deadline voor opdracht nadert!\",\"\"))","v":""},{"$f":"IF(LEN(C12)=0,\"\",IF(COUNTIF(Opdrachten[VERVALDATUM],DATE(MaJaar,MaMaandNum,C12))>0,\"Deadline voor opdracht nadert!\",\"\"))","v":""},{"$f":"IF(LEN(D12)=0,\"\",IF(COUNTIF(Opdrachten[VERVALDATUM],DATE(MaJaar,MaMaandNum,D12))>0,\"Deadline voor opdracht nadert!\",\"\"))","v":""},{"$f":"IF(LEN(E12)=0,\"\",IF(COUNTIF(Opdrachten[VERVALDATUM],DATE(MaJaar,MaMaandNum,E12))>0,\"Deadline voor opdracht nadert!\",\"\"))","v":""},{"$f":"IF(LEN(F12)=0,\"\",IF(COUNTIF(Opdrachten[VERVALDATUM],DATE(MaJaar,MaMaandNum,F12))>0,\"Deadline voor opdracht nadert!\",\"\"))","v":""},{"$f":"IF(LEN(G12)=0,\"\",IF(COUNTIF(Opdrachten[VERVALDATUM],DATE(MaJaar,MaMaandNum,G12))>0,\"Deadline voor opdracht nadert!\",\"\"))","v":""},{"$f":"IF(LEN(H12)=0,\"\",IF(COUNTIF(Opdrachten[VERVALDATUM],DATE(MaJaar,MaMaandNum,H12))>0,\"Deadline voor opdracht nadert!\",\"\"))","v":""}]
[]
[]
[]
[]
[null,{"$f":"IF(LEN(H12)>0,IF(H12=DAY(DATE(MaJaar,MaMaandNum+1,0)),\"\",H12+1),\"\")","v":10},{"$f":"IF(LEN(B18)>0,IF(B18=DAY(DATE(MaJaar,MaMaandNum+1,0)),\"\",B18+1),\"\")","v":11},12,13,14,15,16]
[null,{"$f":"IF(LEN(B18)=0,\"\",IF(COUNTIF(Opdrachten[VERVALDATUM],DATE(MaJaar,MaMaandNum,B18))>0,\"Deadline voor opdracht nadert!\",\"\"))","v":""},{"$f":"IF(LEN(C18)=0,\"\",IF(COUNTIF(Opdrachten[VERVALDATUM],DATE(MaJaar,MaMaandNum,C18))>0,\"Deadline voor opdracht nadert!\",\"\"))","v":""},{"$f":"IF(LEN(D18)=0,\"\",IF(COUNTIF(Opdrachten[VERVALDATUM],DATE(MaJaar,MaMaandNum,D18))>0,\"Deadline voor opdracht nadert!\",\"\"))","v":""},{"$f":"IF(LEN(E18)=0,\"\",IF(COUNTIF(Opdrachten[VERVALDATUM],DATE(MaJaar,MaMaandNum,E18))>0,\"Deadline voor opdracht nadert!\",\"\"))","v":""},{"$f":"IF(LEN(F18)=0,\"\",IF(COUNTIF(Opdrachten[VERVALDATUM],DATE(MaJaar,MaMaandNum,F18))>0,\"Deadline voor opdracht nadert!\",\"\"))","v":""},{"$f":"IF(LEN(G18)=0,\"\",IF(COUNTIF(Opdrachten[VERVALDATUM],DATE(MaJaar,MaMaandNum,G18))>0,\"Deadline voor opdracht nadert!\",\"\"))","v":""},{"$f":"IF(LEN(H18)=0,\"\",IF(COUNTIF(Opdrachten[VERVALDATUM],DATE(MaJaar,MaMaandNum,H18))>0,\"Deadline voor opdracht nadert!\",\"\"))","v":""}]
[]
[]
[]
[]
[null,{"$f":"IF(LEN(H18)>0,IF(H18=DAY(DATE(MaJaar,MaMaandNum+1,0)),\"\",H18+1),\"\")","v":17},{"$f":"IF(LEN(B24)>0,IF(B24=DAY(DATE(MaJaar,MaMaandNum+1,0)),\"\",B24+1),\"\")","v":18},19,20,21,22,23]
[null,{"$f":"IF(LEN(B24)=0,\"\",IF(COUNTIF(Opdrachten[VERVALDATUM],DATE(MaJaar,MaMaandNum,B24))>0,\"Deadline voor opdracht nadert!\",\"\"))","v":""},{"$f":"IF(LEN(C24)=0,\"\",IF(COUNTIF(Opdrachten[VERVALDATUM],DATE(MaJaar,MaMaandNum,C24))>0,\"Deadline voor opdracht nadert!\",\"\"))","v":""},{"$f":"IF(LEN(D24)=0,\"\",IF(COUNTIF(Opdrachten[VERVALDATUM],DATE(MaJaar,MaMaandNum,D24))>0,\"Deadline voor opdracht nadert!\",\"\"))","v":""},{"$f":"IF(LEN(E24)=0,\"\",IF(COUNTIF(Opdrachten[VERVALDATUM],DATE(MaJaar,MaMaandNum,E24))>0,\"Deadline voor opdracht nadert!\",\"\"))","v":""},{"$f":"IF(LEN(F24)=0,\"\",IF(COUNTIF(Opdrachten[VERVALDATUM],DATE(MaJaar,MaMaandNum,F24))>0,\"Deadline voor opdracht nadert!\",\"\"))","v":""},{"$f":"IF(LEN(G24)=0,\"\",IF(COUNTIF(Opdrachten[VERVALDATUM],DATE(MaJaar,MaMaandNum,G24))>0,\"Deadline voor opdracht nadert!\",\"\"))","v":""},{"$f":"IF(LEN(H24)=0,\"\",IF(COUNTIF(Opdrachten[VERVALDATUM],DATE(MaJaar,MaMaandNum,H24))>0,\"Deadline voor opdracht nadert!\",\"\"))","v":""}]
[]
[]
[]
[]
[null,{"$f":"IF(LEN(H24)>0,IF(H24=DAY(DATE(MaJaar,MaMaandNum+1,0)),\"\",H24+1),\"\")","v":24},{"$f":"IF(LEN(B30)>0,IF(B30=DAY(DATE(MaJaar,MaMaandNum+1,0)),\"\",B30+1),\"\")","v":25},26,27,28,29,30]
[null,{"$f":"IF(LEN(B30)=0,\"\",IF(COUNTIF(Opdrachten[VERVALDATUM],DATE(MaJaar,MaMaandNum,B30))>0,\"Deadline voor opdracht nadert!\",\"\"))","v":""},{"$f":"IF(LEN(C30)=0,\"\",IF(COUNTIF(Opdrachten[VERVALDATUM],DATE(MaJaar,MaMaandNum,C30))>0,\"Deadline voor opdracht nadert!\",\"\"))","v":""},{"$f":"IF(LEN(D30)=0,\"\",IF(COUNTIF(Opdrachten[VERVALDATUM],DATE(MaJaar,MaMaandNum,D30))>0,\"Deadline voor opdracht nadert!\",\"\"))","v":""},{"$f":"IF(LEN(E30)=0,\"\",IF(COUNTIF(Opdrachten[VERVALDATUM],DATE(MaJaar,MaMaandNum,E30))>0,\"Deadline voor opdracht nadert!\",\"\"))","v":""},{"$f":"IF(LEN(F30)=0,\"\",IF(COUNTIF(Opdrachten[VERVALDATUM],DATE(MaJaar,MaMaandNum,F30))>0,\"Deadline voor opdracht nadert!\",\"\"))","v":""},{"$f":"IF(LEN(G30)=0,\"\",IF(COUNTIF(Opdrachten[VERVALDATUM],DATE(MaJaar,MaMaandNum,G30))>0,\"Deadline voor opdracht nadert!\",\"\"))","v":"Deadline voor opdracht nadert!"},{"$f":"IF(LEN(H30)=0,\"\",IF(COUNTIF(Opdrachten[VERVALDATUM],DATE(MaJaar,MaMaandNum,H30))>0,\"Deadline voor opdracht nadert!\",\"\"))","v":""}]
[]
[]
[]
[]
[null,{"$f":"IF(LEN(H30)>0,IF(H30=DAY(DATE(MaJaar,MaMaandNum+1,0)),\"\",H30+1),\"\")","v":31},{"$f":"IF(LEN(B36)>0,IF(B36=DAY(DATE(MaJaar,MaMaandNum+1,0)),\"\",B36+1),\"\")","v":""},"","","","",""]
[null,{"$f":"IF(LEN(B36)=0,\"\",IF(COUNTIF(Opdrachten[VERVALDATUM],DATE(MaJaar,MaMaandNum,B36))>0,\"Deadline voor opdracht nadert!\",\"\"))","v":""},{"$f":"IF(LEN(C36)=0,\"\",IF(COUNTIF(Opdrachten[VERVALDATUM],DATE(MaJaar,MaMaandNum,C36))>0,\"Deadline voor opdracht nadert!\",\"\"))","v":""},{"$f":"IF(LEN(D36)=0,\"\",IF(COUNTIF(Opdrachten[VERVALDATUM],DATE(MaJaar,MaMaandNum,D36))>0,\"Deadline voor opdracht nadert!\",\"\"))","v":""},{"$f":"IF(LEN(E36)=0,\"\",IF(COUNTIF(Opdrachten[VERVALDATUM],DATE(MaJaar,MaMaandNum,E36))>0,\"Deadline voor opdracht nadert!\",\"\"))","v":""},{"$f":"IF(LEN(F36)=0,\"\",IF(COUNTIF(Opdrachten[VERVALDATUM],DATE(MaJaar,MaMaandNum,F36))>0,\"Deadline voor opdracht nadert!\",\"\"))","v":""},{"$f":"IF(LEN(G36)=0,\"\",IF(COUNTIF(Opdrachten[VERVALDATUM],DATE(MaJaar,MaMaandNum,G36))>0,\"Deadline voor opdracht nadert!\",\"\"))","v":""},{"$f":"IF(LEN(H36)=0,\"\",IF(COUNTIF(Opdrachten[VERVALDATUM],DATE(MaJaar,MaMaandNum,H36))>0,\"Deadline voor opdracht nadert!\",\"\"))","v":""}]

{"sheet":"Weekweergave","index":2,"n_rows":31,"n_cols":8,"rows_kept":31,"merged":[[3,1,3,7]]}
[]
[null,{"$f":"UPPER(CHOOSE(WkMaandNum,\"Januari\",\"Februari\",\"Maart\",\"April\",\"Mei\",\"Juni\",\"Juli\",\"Augustus\",\"September\",\"Oktober\",\"November\",\"December\"))","v":"MAART"},2013,{"$f":"UPPER(CHOOSE(WkWeek,\"Week 1\",\"Week 2\",\"Week 3\",\"Week 4\", \"Week 5\", \"Week 6\"))","v":"WEEK 5"},5,3]
[]
[null,"WEEKWEERGAVE"]
[null,{"$f":"IF(WEEKDAY(DATEVALUE(\" 1- \"&WkMaand&WkJaar))=COLUMN(A$1),1,IF(LEN(A5)>0,A5+1,\"\"))","v":""},"","","","",1,2]
[null,{"$f":"IF(LEN(H5)>0,IF(H5=LaatsteDagVanMaand_Week,\"\",H5+1),\"\")","v":3},{"$f":"IF(LEN(B6)>0,IF(B6=LaatsteDagVanMaand_Week,\"\",B6+1),\"\")","v":4},5,6,7,8,{"$f":"IF(LEN(G6)>0,IF(G6=LaatsteDagVanMaand_Week,\"\",G6+1),\"\")","v":9}]
[null,{"$f":"IF(LEN(H6)>0,IF(H6=LaatsteDagVanMaand_Week,\"\",H6+1),\"\")","v":10},11,12,13,14,15,16]
[null,{"$f":"IF(LEN(H7)>0,IF(H7=LaatsteDagVanMaand_Week,\"\",H7+1),\"\")","v":17},18,19,20,21,22,23]
[null,{"$f":"IF(LEN(H8)>0,IF(H8=LaatsteDagVanMaand_Week,\"\",H8+1),\"\")","v":24},25,26,27,28,29,30]
[null,{"$f":"IF(LEN(H9)>0,IF(H9=LaatsteDagVanMaand_Week,\"\",H9+1),\"\")","v":31},"","","","","",""]
[null,"MAANDAG","DINSDAG","WOENSDAG","DONDERDAG","VRIJDAG","ZATERDAG","ZONDAG"]
[null,{"$f":"IF(B14=\"\",IF(AND(ISNUMBER(A12),A12<LaatsteDagVanMaand_Week),A12+1,\"\"),IF(B14<=7,\"\",INDEX(WkMaandWeergave,WkWeek,COLUMN(A$1))-7))","v":17},18,19,20,21,22,23]
[null,{"$f":"IF(LEN(B12)=0,\"\",IF(COUNTIF(Opdrachten[VERVALDATUM],DATE(WkJaar,WkMaandNum,B12))>0,\"Deadline voor opdracht nadert!\",\"\"))","v":""},{"$f":"IF(LEN(C12)=0,\"\",IF(COUNTIF(Opdrachten[VERVALDATUM],DATE(WkJaar,WkMaandNum,C12))>0,\"Deadline voor opdracht nadert!\",\"\"))","v":""},{"$f":"IF(LEN(D12)=0,\"\",IF(COUNTIF(Opdrachten[VERVALDATUM],DATE(WkJaar,WkMaandNum,D12))>0,\"Deadline voor opdracht nadert!\",\"\"))","v":""},{"$f":"IF(LEN(E12)=0,\"\",IF(COUNTIF(Opdrachten[VERVALDATUM],DATE(WkJaar,WkMaandNum,E12))>0,\"Deadline voor opdracht nadert!\",\"\"))","v":""},{"$f":"IF(LEN(F12)=0,\"\",IF(COUNTIF(Opdrachten[VERVALDATUM],DATE(WkJaar,WkMaandNum,F12))>0,\"Deadline voor opdracht nadert!\",\"\"))","v":""},{"$f":"IF(LEN(G12)=0,\"\",IF(COUNTIF(Opdrachten[VERVALDATUM],DATE(WkJaar,WkMaandNum,G12))>0,\"Deadline voor opdracht nadert!\",\"\"))","v":""},{"$f":"IF(LEN(H12)=0,\"\",IF(COUNTIF(Opdrachten[VERVALDATUM],DATE(WkJaar,WkMaandNum,H12))>0,\"Deadline voor opdracht nadert!\",\"\"))","v":""}]
[null,{"$f":"INDEX(WkMaandWeergave,WkWeek,COLUMN(A$1))","v":24},25,26,27,28,29,30]
[null,{"$f":"IF(LEN(B14)=0,\"\",IF(COUNTIF(Opdrachten[VERVALDATUM],DATE(WkJaar,WkMaandNum,B14))>0,\"Deadline voor opdracht nadert!\",\"\"))","v":""},{"$f":"IF(LEN(C14)=0,\"\",IF(COUNTIF(Opdrachten[VERVALDATUM],DATE(WkJaar,WkMaandNum,C14))>0,\"Deadline voor opdracht nadert!\",\"\"))","v":""},{"$f":"IF(LEN(D14)=0,\"\",IF(COUNTIF(Opdrachten[VERVALDATUM],DATE(WkJaar,WkMaandNum,D14))>0,\"Deadline voor opdracht nadert!\",\"\"))","v":""},{"$f":"IF(LEN(E14)=0,\"\",IF(COUNTIF(Opdrachten[VERVALDATUM],DATE(WkJaar,WkMaandNum,E14))>0,\"Deadline voor opdracht nadert!\",\"\"))","v":""},{"$f":"IF(LEN(F14)=0,\"\",IF(COUNTIF(Opdrachten[VERVALDATUM],DATE(WkJaar,WkMaandNum,F14))>0,\"Deadline voor opdracht nadert!\",\"\"))","v":""},{"$f":"IF(LEN(G14)=0,\"\",IF(COUNTIF(Opdrachten[VERVALDATUM],DATE(WkJaar,WkMaandNum,G14))>0,\"Deadline voor opdracht nadert!\",\"\"))","v":"Deadline voor opdracht nadert!"},{"$f":"IF(LEN(H14)=0,\"\",IF(COUNTIF(Opdrachten[VERVALDATUM],DATE(WkJaar,WkMaandNum,H14))>0,\"Deadline voor opdracht nadert!\",\"\"))","v":""}]
{"$rows_empty":14}
[null,{"$f":"IF(B14=\"\",IF(AND(ISNUMBER(A30),A30<LaatsteDagVanMaand_Week),H30+1,\"\"),IF(B14+7>LaatsteDagVanMaand_Week,\"\",INDEX(WkMaandWeergave,WkWeek,COLUMN(A$1))+7))","v":31},{"$f":"IF(C14=\"\",IF(AND(ISNUMBER(B30),B30<LaatsteDagVanMaand_Week),B30+1,\"\"),IF(C14+7>LaatsteDagVanMaand_Week,\"\",INDEX(WkMaandWeergave,WkWeek,COLUMN(B$1))+7))","v":""},{"$f":"IF(D14=\"\",IF(AND(ISNUMBER(C30),C30<LaatsteDagVanMaand_Week),C30+1,\"\"),IF(D14+7>LaatsteDagVanMaand_Week,\"\",INDEX(WkMaandWeergave,WkWeek,COLUMN(C$1))+7))","v":""},{"$f":"IF(E14=\"\",IF(AND(ISNUMBER(D30),D30<LaatsteDagVanMaand_Week),D30+1,\"\"),IF(E14+7>LaatsteDagVanMaand_Week,\"\",INDEX(WkMaandWeergave,WkWeek,COLUMN(D$1))+7))","v":""},{"$f":"IF(F14=\"\",IF(AND(ISNUMBER(E30),E30<LaatsteDagVanMaand_Week),E30+1,\"\"),IF(F14+7>LaatsteDagVanMaand_Week,\"\",INDEX(WkMaandWeergave,WkWeek,COLUMN(E$1))+7))","v":""},{"$f":"IF(G14=\"\",IF(AND(ISNUMBER(F30),F30<LaatsteDagVanMaand_Week),F30+1,\"\"),IF(G14+7>LaatsteDagVanMaand_Week,\"\",INDEX(WkMaandWeergave,WkWeek,COLUMN(F$1))+7))","v":""},{"$f":"IF(H14=\"\",IF(AND(ISNUMBER(A30),A30<LaatsteDagVanMaand_Week),A30+1,\"\"),IF(H14+7>LaatsteDagVanMaand_Week,\"\",INDEX(WkMaandWeergave,WkWeek,COLUMN(G$1))+7))","v":""}]
[null,{"$f":"IF(LEN(B30)=0,\"\",IF(COUNTIF(Opdrachten[VERVALDATUM],DATE(WkJaar,WkMaandNum,B30))>0,\"Deadline voor opdracht nadert!\",\"\"))","v":""},{"$f":"IF(LEN(C30)=0,\"\",IF(COUNTIF(Opdrachten[VERVALDATUM],DATE(WkJaar,WkMaandNum,C30))>0,\"Deadline voor opdracht nadert!\",\"\"))","v":""},{"$f":"IF(LEN(D30)=0,\"\",IF(COUNTIF(Opdrachten[VERVALDATUM],DATE(WkJaar,WkMaandNum,D30))>0,\"Deadline voor opdracht nadert!\",\"\"))","v":""},{"$f":"IF(LEN(E30)=0,\"\",IF(COUNTIF(Opdrachten[VERVALDATUM],DATE(WkJaar,WkMaandNum,E30))>0,\"Deadline voor opdracht nadert!\",\"\"))","v":""},{"$f":"IF(LEN(F30)=0,\"\",IF(COUNTIF(Opdrachten[VERVALDATUM],DATE(WkJaar,WkMaandNum,F30))>0,\"Deadline voor opdracht nadert!\",\"\"))","v":""},{"$f":"IF(LEN(G30)=0,\"\",IF(COUNTIF(Opdrachten[VERVALDATUM],DATE(WkJaar,WkMaandNum,G30))>0,\"Deadline voor opdracht nadert!\",\"\"))","v":""},{"$f":"IF(LEN(H30)=0,\"\",IF(COUNTIF(Opdrachten[VERVALDATUM],DATE(WkJaar,WkMaandNum,H30))>0,\"Deadline voor opdracht nadert!\",\"\"))","v":""}]